[Event "Titled Tuesday Blitz August 15 Early 2023"]
[White "Drygalov, Sergey"]
[Black "Srihari L R"]
[WhiteFideId "24171743"]
[BlackFideId "46617116"]
[WhiteElo "2991"]
[BlackElo "2769"]
[Result "1-0"]
[Round "9"]
[TimeControl "180+1"]
[Date "2023.08.15"]
[WhiteClock "0:01:30"]
[BlackClock "0:00:54"]
[Board "19"]

1. d4 {[%clk 0:03:00]}  d5 {[%clk 0:02:58]} 2. c4 {[%clk 0:03:01]}  c6 {[%clk 0:02:58]} 3. Nf3 {[%clk 0:03:02]}  Nf6 {[%clk 0:02:58]} 4. Nc3 {[%clk 0:03:02]}  dxc4 {[%clk 0:02:58]} 5. a4 {[%clk 0:03:02]}  e6 {[%clk 0:02:57]} 6. e4 {[%clk 0:02:52]}  Bb4 {[%clk 0:02:52]} 7. e5 {[%clk 0:02:52]}  Nd5 {[%clk 0:02:51]} 8. Bd2 {[%clk 0:02:53]}  Bxc3 {[%clk 0:02:51]} 9. bxc3 {[%clk 0:02:53]}  b5 {[%clk 0:02:51]} 10. Ng5 {[%clk 0:02:51]}  h6 {[%clk 0:02:47]} 11. Qh5 {[%clk 0:02:49]}  g6 {[%clk 0:02:35]} 12. Qh3 {[%clk 0:02:45]}  b4 {[%clk 0:02:34]} 13. Ne4 {[%clk 0:02:41]}  bxc3 {[%clk 0:02:30]} 14. Bxc3 {[%clk 0:02:38]}  Nxc3 {[%clk 0:02:25]} 15. Qxc3 {[%clk 0:02:36]}  O-O {[%clk 0:02:25]} 16. Bxc4 {[%clk 0:02:35]}  Ba6 {[%clk 0:02:25]} 17. O-O {[%clk 0:02:34]}  Kg7 {[%clk 0:02:20]} 18. Rfc1 {[%clk 0:02:25]}  Bxc4 {[%clk 0:02:19]} 19. Qxc4 {[%clk 0:02:25]}  Qd5 {[%clk 0:02:17]} 20. Qxd5 {[%clk 0:02:24]}  cxd5 {[%clk 0:02:18]} 21. Nd6 {[%clk 0:02:24]}  Na6 {[%clk 0:02:14]} 22. Rc6 {[%clk 0:02:21]}  Nb4 {[%clk 0:02:11]} 23. Rc7 {[%clk 0:02:21]}  a5 {[%clk 0:02:11]} 24. Rac1 {[%clk 0:02:20]}  Rab8 {[%clk 0:02:08]} 25. g3 {[%clk 0:02:14]}  Na6 {[%clk 0:01:59]} 26. Ra7 {[%clk 0:02:12]}  Ra8 {[%clk 0:01:58]} 27. Re7 {[%clk 0:02:07]}  g5 {[%clk 0:01:47]} 28. Rc6 {[%clk 0:01:58]}  Kg6 {[%clk 0:01:44]} 29. g4 {[%clk 0:01:55]}  Nb4 {[%clk 0:01:14]} 30. Rcc7 {[%clk 0:01:54]}  Nd3 {[%clk 0:01:15]} 31. Rxf7 {[%clk 0:01:45]}  Rxf7 {[%clk 0:01:13]} 32. Rxf7 {[%clk 0:01:44]}  Nf4 {[%clk 0:01:12]} 33. h4 {[%clk 0:01:44]}  h5 {[%clk 0:01:09]} 34. Rf6+ {[%clk 0:01:35]}  Kg7 {[%clk 0:01:08]} 35. gxh5 {[%clk 0:01:36]}  Nxh5 {[%clk 0:01:05]} 36. Rxe6 {[%clk 0:01:34]}  gxh4 {[%clk 0:01:04]} 37. Nf5+ {[%clk 0:01:32]}  Kf7 {[%clk 0:01:04]} 38. Rh6 {[%clk 0:01:30]}  Nf4 {[%clk 0:00:54]} 39. Rf6+ {[%clk 0:01:30]} 1-0


[Site "https://www.chess.com"]

[Event "Titled Tuesday Blitz August 15 Early 2023"]
[White "Badmatsyrenov, Oleg"]
[Black "Svane, Rasmus"]
[WhiteFideId "24115762"]
[BlackFideId "4657101"]
[WhiteElo "2753"]
[BlackElo "2981"]
[Result "1-0"]
[Round "9"]
[TimeControl "180+1"]
[Date "2023.08.15"]
[WhiteClock "0:00:39"]
[BlackClock "0:00:41"]
[Board "20"]

1. e4 {[%clk 0:02:53]}  c6 {[%clk 0:03:00]} 2. d4 {[%clk 0:02:53]}  d5 {[%clk 0:03:01]} 3. Nc3 {[%clk 0:02:53]}  dxe4 {[%clk 0:03:01]} 4. Bc4 {[%clk 0:02:54]}  Nf6 {[%clk 0:03:01]} 5. f3 {[%clk 0:02:54]}  Bf5 {[%clk 0:02:56]} 6. g4 {[%clk 0:02:50]}  Bg6 {[%clk 0:02:48]} 7. g5 {[%clk 0:02:51]}  Nd5 {[%clk 0:02:48]} 8. fxe4 {[%clk 0:02:52]}  Nxc3 {[%clk 0:02:48]} 9. bxc3 {[%clk 0:02:52]}  e5 {[%clk 0:02:38]} 10. Nf3 {[%clk 0:02:52]}  exd4 {[%clk 0:02:36]} 11. cxd4 {[%clk 0:02:52]}  Bb4+ {[%clk 0:02:33]} 12. Bd2 {[%clk 0:02:46]}  Bxd2+ {[%clk 0:02:32]} 13. Qxd2 {[%clk 0:02:46]}  Bxe4 {[%clk 0:02:00]} 14. Bxf7+ {[%clk 0:02:37]}  Kxf7 {[%clk 0:01:54]} 15. Qf4+ {[%clk 0:02:37]}  Ke8 {[%clk 0:01:46]} 16. Qxe4+ {[%clk 0:02:37]}  Qe7 {[%clk 0:01:47]} 17. Qxe7+ {[%clk 0:02:36]}  Kxe7 {[%clk 0:01:47]} 18. O-O {[%clk 0:02:36]}  Nd7 {[%clk 0:01:46]} 19. Rae1+ {[%clk 0:02:36]}  Kd6 {[%clk 0:01:46]} 20. c4 {[%clk 0:02:28]}  Rae8 {[%clk 0:01:43]} 21. Nd2 {[%clk 0:02:14]}  Rxe1 {[%clk 0:01:39]} 22. Rxe1 {[%clk 0:02:14]}  Rf8 {[%clk 0:01:39]} 23. Ne4+ {[%clk 0:02:09]}  Kc7 {[%clk 0:01:39]} 24. Kg2 {[%clk 0:02:05]}  Rf5 {[%clk 0:01:33]} 25. h4 {[%clk 0:02:03]}  Ra5 {[%clk 0:01:33]} 26. Re2 {[%clk 0:02:02]}  Ra4 {[%clk 0:01:33]} 27. Rc2 {[%clk 0:01:42]}  Ra3 {[%clk 0:01:33]} 28. c5 {[%clk 0:01:36]}  Nf8 {[%clk 0:01:20]} 29. Rf2 {[%clk 0:01:25]}  Ne6 {[%clk 0:01:14]} 30. Rf7+ {[%clk 0:01:25]}  Kd8 {[%clk 0:01:10]} 31. Rxb7 {[%clk 0:01:14]}  Rxa2+ {[%clk 0:01:06]} 32. Kg3 {[%clk 0:01:13]}  Ra4 {[%clk 0:00:58]} 33. Nd6 {[%clk 0:01:05]}  Rxd4 {[%clk 0:00:54]} 34. Rxa7 {[%clk 0:00:58]}  Nxc5 {[%clk 0:00:55]} 35. Nf7+ {[%clk 0:00:49]}  Ke8 {[%clk 0:00:54]} 36. Ne5 {[%clk 0:00:49]}  Nd7 {[%clk 0:00:45]} 37. Ra8+ {[%clk 0:00:43]}  Nb8 {[%clk 0:00:31]} 38. Rxb8+ {[%clk 0:00:43]}  Rd8 {[%clk 0:00:32]} 39. Rxd8+ {[%clk 0:00:43]}  Kxd8 {[%clk 0:00:33]} 40. Nxc6+ {[%clk 0:00:43]}  Kd7 {[%clk 0:00:34]} 41. Nd4 {[%clk 0:00:42]}  Ke7 {[%clk 0:00:33]} 42. Kf4 {[%clk 0:00:42]}  Kf7 {[%clk 0:00:34]} 43. Kf5 {[%clk 0:00:40]}  g6+ {[%clk 0:00:29]} 44. Ke5 {[%clk 0:00:40]}  Kg7 {[%clk 0:00:28]} 45. Ke6 {[%clk 0:00:39]}  h6 {[%clk 0:00:27]} 46. Ke7 {[%clk 0:00:39]}  hxg5 {[%clk 0:00:28]} 47. hxg5 {[%clk 0:00:39]}  Kh7 {[%clk 0:00:28]} 48. Kf7 {[%clk 0:00:39]}  Kh8 {[%clk 0:00:29]} 49. Kxg6 {[%clk 0:00:39]}  Kg8 {[%clk 0:00:30]} 50. Kh6 {[%clk 0:00:40]}  Kh8 {[%clk 0:00:31]} 51. g6 {[%clk 0:00:40]}  Kg8 {[%clk 0:00:32]} 52. g7 {[%clk 0:00:40]}  Kf7 {[%clk 0:00:33]} 53. Kh7 {[%clk 0:00:41]}  Kf6 {[%clk 0:00:34]} 54. g8=Q {[%clk 0:00:41]}  Ke5 {[%clk 0:00:35]} 55. Qe6+ {[%clk 0:00:41]}  Kf4 {[%clk 0:00:35]} 56. Qf5+ {[%clk 0:00:40]}  Ke3 {[%clk 0:00:35]} 57. Qf3+ {[%clk 0:00:40]}  Kd2 {[%clk 0:00:36]} 58. Nc6 {[%clk 0:00:38]}  Kc2 {[%clk 0:00:36]} 59. Kg6 {[%clk 0:00:37]}  Kd2 {[%clk 0:00:37]} 60. Kf5 {[%clk 0:00:38]}  Ke1 {[%clk 0:00:38]} 61. Ke4 {[%clk 0:00:39]}  Kd2 {[%clk 0:00:39]} 62. Kd4 {[%clk 0:00:40]}  Ke1 {[%clk 0:00:40]} 63. Qg2 {[%clk 0:00:39]}  Kd1 {[%clk 0:00:40]} 64. Kd3 {[%clk 0:00:40]}  Kc1 {[%clk 0:00:41]} 65. Qc2# {[%clk 0:00:39]} 1-0


[Site "https://www.chess.com"]

[Event "Titled Tuesday Blitz August 15 Early 2023"]
[White "Terry, Renato"]
[Black "Kuznetsov, Felix"]
[WhiteFideId "3803457"]
[BlackFideId "34147990"]
[WhiteElo "2937"]
[BlackElo "2720"]
[Result "1-0"]
[Round "9"]
[TimeControl "180+1"]
[Date "2023.08.15"]
[WhiteClock "0:00:04"]
[BlackClock "0:00:00"]
[Board "21"]

1. d4 {[%clk 0:03:00]}  Nf6 {[%clk 0:02:59]} 2. Nf3 {[%clk 0:03:01]}  e6 {[%clk 0:03:00]} 3. c4 {[%clk 0:03:02]}  d5 {[%clk 0:02:59]} 4. e3 {[%clk 0:03:02]}  dxc4 {[%clk 0:02:55]} 5. Bxc4 {[%clk 0:03:02]}  a6 {[%clk 0:02:53]} 6. O-O {[%clk 0:03:02]}  b5 {[%clk 0:02:54]} 7. Bd3 {[%clk 0:03:02]}  Bb7 {[%clk 0:02:54]} 8. Qe2 {[%clk 0:03:03]}  c5 {[%clk 0:02:53]} 9. dxc5 {[%clk 0:03:03]}  Bxc5 {[%clk 0:02:53]} 10. Bxb5+ {[%clk 0:03:03]}  Nbd7 {[%clk 0:02:29]} 11. Ba4 {[%clk 0:03:03]}  O-O {[%clk 0:02:29]} 12. Nbd2 {[%clk 0:03:03]}  Qa5 {[%clk 0:02:23]} 13. Bc2 {[%clk 0:02:53]}  Rac8 {[%clk 0:02:22]} 14. Nb3 {[%clk 0:02:52]}  Qc7 {[%clk 0:02:19]} 15. Bd3 {[%clk 0:02:50]}  Bd6 {[%clk 0:02:17]} 16. h3 {[%clk 0:02:47]}  Ne5 {[%clk 0:02:15]} 17. Nxe5 {[%clk 0:02:44]}  Bxe5 {[%clk 0:02:16]} 18. Bxa6 {[%clk 0:02:44]}  Bxa6 {[%clk 0:01:57]} 19. Qxa6 {[%clk 0:02:45]}  Qc2 {[%clk 0:01:57]} 20. Nd4 {[%clk 0:02:39]}  Bxd4 {[%clk 0:01:54]} 21. exd4 {[%clk 0:02:40]}  Nd5 {[%clk 0:01:52]} 22. a3 {[%clk 0:02:30]}  Rc4 {[%clk 0:01:50]} 23. Be3 {[%clk 0:02:06]}  Nxe3 {[%clk 0:01:39]} 24. fxe3 {[%clk 0:02:05]}  Qd3 {[%clk 0:01:29]} 25. Kh2 {[%clk 0:01:57]}  Rfc8 {[%clk 0:01:27]} 26. Rac1 {[%clk 0:01:48]}  h5 {[%clk 0:00:54]} 27. Qxc8+ {[%clk 0:01:40]}  Rxc8 {[%clk 0:00:53]} 28. Rxc8+ {[%clk 0:01:41]}  Kh7 {[%clk 0:00:54]} 29. Rxf7 {[%clk 0:01:42]}  Qxe3 {[%clk 0:00:47]} 30. Rcc7 {[%clk 0:01:40]}  Qxd4 {[%clk 0:00:40]} 31. Rxg7+ {[%clk 0:01:40]}  Kh6 {[%clk 0:00:40]} 32. Rh7+ {[%clk 0:01:28]}  Kg6 {[%clk 0:00:40]} 33. Rcg7+ {[%clk 0:01:23]}  Kf6 {[%clk 0:00:41]} 34. Rg3 {[%clk 0:01:18]}  h4 {[%clk 0:00:32]} 35. Rh6+ {[%clk 0:01:09]}  Ke7 {[%clk 0:00:31]} 36. Rh7+ {[%clk 0:01:04]}  Kd6 {[%clk 0:00:31]} 37. Rf3 {[%clk 0:00:56]}  Qe5+ {[%clk 0:00:30]} 38. Kg1 {[%clk 0:00:55]}  Qc5+ {[%clk 0:00:15]} 39. Kh1 {[%clk 0:00:49]}  Qc1+ {[%clk 0:00:13]} 40. Kh2 {[%clk 0:00:49]}  Qe1 {[%clk 0:00:13]} 41. Rd3+ {[%clk 0:00:34]}  Kc6 {[%clk 0:00:12]} 42. Rf7 {[%clk 0:00:24]}  Qe5+ {[%clk 0:00:11]} 43. Kg1 {[%clk 0:00:24]}  Qxb2 {[%clk 0:00:10]} 44. Rf1 {[%clk 0:00:10]}  Qe2 {[%clk 0:00:09]} 45. Rfd1 {[%clk 0:00:05]}  e5 {[%clk 0:00:09]} 46. Rd6+ {[%clk 0:00:02]}  Kc5 {[%clk 0:00:09]} 47. R6d2 {[%clk 0:00:03]}  Qe3+ {[%clk 0:00:09]} 48. Kf1 {[%clk 0:00:04]}  Qf4+ {[%clk 0:00:08]} 49. Rf2 {[%clk 0:00:04]}  Qc4+ {[%clk 0:00:08]} 50. Re2 {[%clk 0:00:04]}  Qf4+ {[%clk 0:00:08]} 51. Kg1 {[%clk 0:00:04]}  e4 {[%clk 0:00:06]} 52. Rde1 {[%clk 0:00:04]}  Qf6 {[%clk 0:00:02]} 53. Rxe4 {[%clk 0:00:04]}  Qb2 {[%clk 0:00:02]} 54. R4e3 {[%clk 0:00:04]}  Kd4 {[%clk 0:00:02]} 55. Kh1 {[%clk 0:00:04]}  Qd2 {[%clk 0:00:02]} 56. Re8 {[%clk 0:00:04]}  Qb2 {[%clk 0:00:01]} 57. Rd8+ {[%clk 0:00:03]}  Kc5 {[%clk 0:00:01]} 58. Rc8+ {[%clk 0:00:02]}  Kd6 {[%clk 0:00:02]} 59. Rd8+ {[%clk 0:00:03]}  Kc7 {[%clk 0:00:02]} 60. Rd3 {[%clk 0:00:03]}  Qf2 {[%clk 0:00:02]} 61. Rde3 {[%clk 0:00:03]}  Qd2 {[%clk 0:00:02]} 62. Re4 {[%clk 0:00:04]}  Qd3 {[%clk 0:00:02]} 63. R1e3 {[%clk 0:00:03]}  Qd1+ {[%clk 0:00:02]} 64. Kh2 {[%clk 0:00:04]}  Qd6+ {[%clk 0:00:03]} 65. Kg1 {[%clk 0:00:04]}  Qd1+ {[%clk 0:00:03]} 66. Re1 {[%clk 0:00:05]}  Qd2 {[%clk 0:00:03]} 67. Kf1 {[%clk 0:00:05]}  Qd3+ {[%clk 0:00:03]} 68. Kf2 {[%clk 0:00:06]}  Qxa3 {[%clk 0:00:04]} 69. R1e3 {[%clk 0:00:04]}  Qb2+ {[%clk 0:00:04]} 70. Kf3 {[%clk 0:00:05]}  Qf6+ {[%clk 0:00:04]} 71. Rf4 {[%clk 0:00:05]}  Qg5 {[%clk 0:00:04]} 72. Rg4 {[%clk 0:00:05]}  Qf5+ {[%clk 0:00:05]} 73. Rf4 {[%clk 0:00:05]}  Qg5 {[%clk 0:00:05]} 74. Rf7+ {[%clk 0:00:05]}  Kd6 {[%clk 0:00:05]} 75. Kf2 {[%clk 0:00:05]}  Qg6 {[%clk 0:00:02]} 76. Rf4 {[%clk 0:00:05]}  Qg5 {[%clk 0:00:03]} 77. Ree4 {[%clk 0:00:03]}  Qg3+ {[%clk 0:00:03]} 78. Kf1 {[%clk 0:00:04]}  Qd3+ {[%clk 0:00:03]} 79. Kg1 {[%clk 0:00:04]}  Kd5 {[%clk 0:00:03]} 80. Rxh4 {[%clk 0:00:04]}  Qd1+ {[%clk 0:00:04]} 81. Kh2 {[%clk 0:00:04]}  Qf1 {[%clk 0:00:03]} 82. Ref4 {[%clk 0:00:04]}  Qe1 {[%clk 0:00:03]} 83. Rh5+ {[%clk 0:00:04]}  Kd6 {[%clk 0:00:03]} 84. Rhf5 {[%clk 0:00:05]}  Ke6 {[%clk 0:00:03]} 85. Rf8 {[%clk 0:00:04]}  Ke7 {[%clk 0:00:03]} 86. R4f7+ {[%clk 0:00:04]}  Kd6 {[%clk 0:00:04]} 87. Rf6+ {[%clk 0:00:05]}  Ke7 {[%clk 0:00:03]} 88. R8f7+ {[%clk 0:00:05]}  Ke8 {[%clk 0:00:04]} 89. Rf5 {[%clk 0:00:05]}  Qe3 {[%clk 0:00:03]} 90. h4 {[%clk 0:00:05]}  Qd4 {[%clk 0:00:03]} 91. Kh3 {[%clk 0:00:05]}  Qe3+ {[%clk 0:00:03]} 92. g3 {[%clk 0:00:06]}  Qe1 {[%clk 0:00:03]} 93. Rf1 {[%clk 0:00:06]}  Qe4 {[%clk 0:00:03]} 94. R7f5 {[%clk 0:00:07]}  Qd3 {[%clk 0:00:03]} 95. Re5+ {[%clk 0:00:06]}  Kd7 {[%clk 0:00:03]} 96. Rf4 {[%clk 0:00:06]}  Qd1 {[%clk 0:00:03]} 97. Ree4 {[%clk 0:00:05]}  Qh1+ {[%clk 0:00:03]} 98. Kg4 {[%clk 0:00:06]}  Qd1+ {[%clk 0:00:03]} 99. Kg5 {[%clk 0:00:06]}  Qd3 {[%clk 0:00:02]} 100. g4 {[%clk 0:00:05]}  Qc3 {[%clk 0:00:02]} 101. Rf7+ {[%clk 0:00:05]}  Kd8 {[%clk 0:00:02]} 102. Ref4 {[%clk 0:00:05]}  Qe5+ {[%clk 0:00:01]} 103. R4f5 {[%clk 0:00:05]}  Qe3+ {[%clk 0:00:01]} 104. Kg6 {[%clk 0:00:05]}  Qe6+ {[%clk 0:00:01]} 105. Kh5 {[%clk 0:00:05]}  Qd6 {[%clk 0:00:00]} 106. g5 {[%clk 0:00:04]} 1-0


[Site "https://www.chess.com"]

[Event "Titled Tuesday Blitz August 15 Early 2023"]
[White "Matinian, Nikita"]
[Black "Drygalov, Andrey"]
[WhiteFideId "24129100"]
[BlackFideId "24171735"]
[WhiteElo "2707"]
[BlackElo "2932"]
[Result "1-0"]
[Round "9"]
[TimeControl "180+1"]
[Date "2023.08.15"]
[WhiteClock "0:00:09"]
[BlackClock "0:00:00"]
[Board "22"]

1. e4 {[%clk 0:03:00]}  c5 {[%clk 0:03:00]} 2. Nf3 {[%clk 0:03:01]}  d6 {[%clk 0:03:00]} 3. d4 {[%clk 0:03:01]}  cxd4 {[%clk 0:03:01]} 4. Nxd4 {[%clk 0:03:02]}  Nf6 {[%clk 0:03:02]} 5. Nc3 {[%clk 0:03:03]}  a6 {[%clk 0:03:03]} 6. h3 {[%clk 0:03:03]}  e5 {[%clk 0:03:02]} 7. Nb3 {[%clk 0:03:03]}  Be7 {[%clk 0:02:55]} 8. g4 {[%clk 0:03:03]}  h6 {[%clk 0:02:55]} 9. Be3 {[%clk 0:03:02]}  b5 {[%clk 0:02:54]} 10. a4 {[%clk 0:02:57]}  b4 {[%clk 0:02:52]} 11. Nd5 {[%clk 0:02:57]}  Nbd7 {[%clk 0:02:51]} 12. Nxb4 {[%clk 0:02:52]}  Bb7 {[%clk 0:02:47]} 13. Bg2 {[%clk 0:02:51]}  O-O {[%clk 0:02:35]} 14. Qd3 {[%clk 0:02:28]}  Qc7 {[%clk 0:02:26]} 15. a5 {[%clk 0:02:19]}  Rfc8 {[%clk 0:02:25]} 16. O-O {[%clk 0:02:07]}  Nc5 {[%clk 0:02:24]} 17. Nxc5 {[%clk 0:02:05]}  dxc5 {[%clk 0:02:14]} 18. Nd5 {[%clk 0:02:05]}  Nxd5 {[%clk 0:02:13]} 19. exd5 {[%clk 0:02:06]}  c4 {[%clk 0:02:13]} 20. Qe4 {[%clk 0:01:58]}  Bd6 {[%clk 0:02:13]} 21. Bb6 {[%clk 0:01:36]}  Qd7 {[%clk 0:02:12]} 22. b3 {[%clk 0:01:36]}  cxb3 {[%clk 0:02:11]} 23. cxb3 {[%clk 0:01:37]}  Qb5 {[%clk 0:02:12]} 24. Rab1 {[%clk 0:01:35]}  Rc3 {[%clk 0:02:11]} 25. Qa4 {[%clk 0:00:41]}  Qxa4 {[%clk 0:00:39]} 26. bxa4 {[%clk 0:00:42]}  Bc8 {[%clk 0:00:38]} 27. Rfc1 {[%clk 0:00:33]}  Rxc1+ {[%clk 0:00:37]} 28. Rxc1 {[%clk 0:00:34]}  Bd7 {[%clk 0:00:37]} 29. Rc4 {[%clk 0:00:27]}  Kf8 {[%clk 0:00:35]} 30. Be4 {[%clk 0:00:14]}  Ke7 {[%clk 0:00:35]} 31. Kg2 {[%clk 0:00:14]}  g6 {[%clk 0:00:35]} 32. Bd3 {[%clk 0:00:05]}  f5 {[%clk 0:00:22]} 33. f3 {[%clk 0:00:05]}  Kf6 {[%clk 0:00:21]} 34. Bc7 {[%clk 0:00:04]}  Ke7 {[%clk 0:00:16]} 35. Bxd6+ {[%clk 0:00:04]}  Kxd6 {[%clk 0:00:17]} 36. Rb4 {[%clk 0:00:04]}  Kxd5 {[%clk 0:00:15]} 37. Rb6 {[%clk 0:00:04]}  e4 {[%clk 0:00:14]} 38. Bxa6 {[%clk 0:00:03]}  Ke5 {[%clk 0:00:11]} 39. Bb5 {[%clk 0:00:02]}  Be6 {[%clk 0:00:08]} 40. fxe4 {[%clk 0:00:02]}  fxe4 {[%clk 0:00:08]} 41. a6 {[%clk 0:00:03]}  Bd5 {[%clk 0:00:08]} 42. Bc6 {[%clk 0:00:02]}  Bxc6 {[%clk 0:00:03]} 43. Rxc6 {[%clk 0:00:03]}  g5 {[%clk 0:00:03]} 44. Kf2 {[%clk 0:00:03]}  Kf4 {[%clk 0:00:03]} 45. Rf6+ {[%clk 0:00:03]}  Ke5 {[%clk 0:00:03]} 46. Rxh6 {[%clk 0:00:04]}  Rf8+ {[%clk 0:00:03]} 47. Ke2 {[%clk 0:00:04]}  Ra8 {[%clk 0:00:02]} 48. Rg6 {[%clk 0:00:04]}  Kf4 {[%clk 0:00:02]} 49. Rh6 {[%clk 0:00:05]}  Ke5 {[%clk 0:00:02]} 50. Ke3 {[%clk 0:00:05]}  Rf8 {[%clk 0:00:02]} 51. Rg6 {[%clk 0:00:06]}  Rf3+ {[%clk 0:00:02]} 52. Ke2 {[%clk 0:00:06]}  Ra3 {[%clk 0:00:02]} 53. Rxg5+ {[%clk 0:00:07]}  Kf4 {[%clk 0:00:03]} 54. Ra5 {[%clk 0:00:07]}  Ra2+ {[%clk 0:00:03]} 55. Kd1 {[%clk 0:00:08]}  e3 {[%clk 0:00:02]} 56. a7 {[%clk 0:00:08]}  e2+ {[%clk 0:00:01]} 57. Ke1 {[%clk 0:00:08]}  Ke3 {[%clk 0:00:02]} 58. Re5+ {[%clk 0:00:08]}  Kd3 {[%clk 0:00:03]} 59. a8=Q {[%clk 0:00:08]}  Ra1+ {[%clk 0:00:03]} 60. Kf2 {[%clk 0:00:08]}  Rf1+ {[%clk 0:00:00]} 61. Kg2 {[%clk 0:00:09]} 1-0


[Site "https://www.chess.com"]

[Event "Titled Tuesday Blitz August 15 Early 2023"]
[White "Pakleza, Zbigniew"]
[Black "Ordekalog"]
[WhiteFideId "1119290"]
[WhiteElo "2820"]
[BlackElo "2550"]
[Result "1-0"]
[Round "9"]
[TimeControl "180+1"]
[Date "2023.08.15"]
[WhiteClock "0:00:05"]
[BlackClock "0:00:00"]
[Board "36"]

1. d4 {[%clk 0:03:00]}  d5 {[%clk 0:02:58]} 2. Bf4 {[%clk 0:03:00]}  e6 {[%clk 0:02:57]} 3. e3 {[%clk 0:03:00]}  c5 {[%clk 0:02:55]} 4. c3 {[%clk 0:03:00]}  Nf6 {[%clk 0:02:49]} 5. Nd2 {[%clk 0:03:00]}  Bd6 {[%clk 0:02:47]} 6. Bg3 {[%clk 0:03:00]}  O-O {[%clk 0:02:43]} 7. Ngf3 {[%clk 0:03:00]}  Nc6 {[%clk 0:02:42]} 8. Bd3 {[%clk 0:03:00]}  Re8 {[%clk 0:02:39]} 9. Ne5 {[%clk 0:03:00]}  Bf8 {[%clk 0:02:21]} 10. f4 {[%clk 0:02:58]}  Ne7 {[%clk 0:02:18]} 11. Qf3 {[%clk 0:02:49]}  Nf5 {[%clk 0:02:17]} 12. Bf2 {[%clk 0:02:49]}  cxd4 {[%clk 0:02:15]} 13. exd4 {[%clk 0:02:48]}  Nd6 {[%clk 0:02:11]} 14. g4 {[%clk 0:02:40]}  Qb6 {[%clk 0:02:04]} 15. O-O-O {[%clk 0:02:37]}  a5 {[%clk 0:01:59]} 16. g5 {[%clk 0:02:28]}  Nfe4 {[%clk 0:01:59]} 17. Nxe4 {[%clk 0:02:28]}  dxe4 {[%clk 0:01:59]} 18. Bxe4 {[%clk 0:02:29]}  Nxe4 {[%clk 0:01:55]} 19. Qxe4 {[%clk 0:02:30]}  a4 {[%clk 0:01:55]} 20. a3 {[%clk 0:02:19]}  Qb3 {[%clk 0:01:53]} 21. Qc2 {[%clk 0:02:12]}  Qa2 {[%clk 0:01:52]} 22. h4 {[%clk 0:01:49]}  b5 {[%clk 0:01:44]} 23. h5 {[%clk 0:01:47]}  Bb7 {[%clk 0:01:43]} 24. g6 {[%clk 0:01:47]}  fxg6 {[%clk 0:01:41]} 25. hxg6 {[%clk 0:01:46]}  h6 {[%clk 0:01:42]} 26. Rhg1 {[%clk 0:01:04]}  b4 {[%clk 0:01:40]} 27. axb4 {[%clk 0:00:57]}  Bxb4 {[%clk 0:01:39]} 28. Kd2 {[%clk 0:00:53]}  Rec8 {[%clk 0:01:24]} 29. Ra1 {[%clk 0:00:28]}  Qd5 {[%clk 0:01:24]} 30. Rxa4 {[%clk 0:00:22]}  Ba5 {[%clk 0:00:45]} 31. f5 {[%clk 0:00:12]}  Bc6 {[%clk 0:00:38]} 32. Rc4 {[%clk 0:00:10]}  Bb5 {[%clk 0:00:33]} 33. Rxc8+ {[%clk 0:00:09]}  Rxc8 {[%clk 0:00:34]} 34. fxe6 {[%clk 0:00:07]}  Qxe6 {[%clk 0:00:32]} 35. Qe4 {[%clk 0:00:04]}  Bc6 {[%clk 0:00:28]} 36. Qg4 {[%clk 0:00:03]}  Qe8 {[%clk 0:00:25]} 37. Qf5 {[%clk 0:00:03]}  Rc7 {[%clk 0:00:24]} 38. Qf7+ {[%clk 0:00:03]}  Rxf7 {[%clk 0:00:24]} 39. gxf7+ {[%clk 0:00:04]}  Qxf7 {[%clk 0:00:24]} 40. Nxf7 {[%clk 0:00:05]}  Kxf7 {[%clk 0:00:24]} 41. b4 {[%clk 0:00:04]}  Bc7 {[%clk 0:00:23]} 42. c4 {[%clk 0:00:04]}  Be4 {[%clk 0:00:22]} 43. Kc3 {[%clk 0:00:04]}  g5 {[%clk 0:00:21]} 44. b5 {[%clk 0:00:05]}  Bf4 {[%clk 0:00:17]} 45. d5 {[%clk 0:00:02]}  h5 {[%clk 0:00:17]} 46. Bd4 {[%clk 0:00:02]}  h4 {[%clk 0:00:17]} 47. b6 {[%clk 0:00:02]}  h3 {[%clk 0:00:17]} 48. b7 {[%clk 0:00:02]}  h2 {[%clk 0:00:16]} 49. Ra1 {[%clk 0:00:02]}  h1=Q {[%clk 0:00:16]} 50. Rxh1 {[%clk 0:00:03]}  Bxh1 {[%clk 0:00:17]} 51. Ba7 {[%clk 0:00:03]}  g4 {[%clk 0:00:15]} 52. b8=Q {[%clk 0:00:03]}  Bxb8 {[%clk 0:00:14]} 53. Bxb8 {[%clk 0:00:04]}  Bf3 {[%clk 0:00:08]} 54. Kd4 {[%clk 0:00:04]}  Bd1 {[%clk 0:00:06]} 55. c5 {[%clk 0:00:04]}  Ba4 {[%clk 0:00:06]} 56. c6 {[%clk 0:00:04]}  Ke7 {[%clk 0:00:05]} 57. Kc5 {[%clk 0:00:04]}  Bd1 {[%clk 0:00:04]} 58. Bg3 {[%clk 0:00:03]}  Bf3 {[%clk 0:00:02]} 59. d6+ {[%clk 0:00:04]}  Kd8 {[%clk 0:00:02]} 60. Bh4+ {[%clk 0:00:04]}  Ke8 {[%clk 0:00:00]} 61. d7+ {[%clk 0:00:05]} 1-0


[Site "https://www.chess.com"]

[Event "Titled Tuesday Blitz August 15 Early 2023"]
[White "Ter-Sahakyan, Samvel"]
[Black "Martinez Reyes, Pedro Ramon"]
[WhiteFideId "13302531"]
[BlackFideId "3901807"]
[WhiteElo "2825"]
[BlackElo "2530"]
[Result "1-0"]
[Round "9"]
[TimeControl "180+1"]
[Date "2023.08.15"]
[WhiteClock "0:00:50"]
[BlackClock "0:00:06"]
[Board "38"]

1. c4 {[%clk 0:03:00]}  e5 {[%clk 0:02:58]} 2. g3 {[%clk 0:02:59]}  Nf6 {[%clk 0:02:57]} 3. Bg2 {[%clk 0:02:59]}  d5 {[%clk 0:02:57]} 4. cxd5 {[%clk 0:02:59]}  Nxd5 {[%clk 0:02:58]} 5. Nc3 {[%clk 0:02:59]}  Nf6 {[%clk 0:02:58]} 6. Nf3 {[%clk 0:02:58]}  Nc6 {[%clk 0:02:58]} 7. O-O {[%clk 0:02:58]}  h6 {[%clk 0:02:58]} 8. a3 {[%clk 0:02:25]}  e4 {[%clk 0:02:31]} 9. Ne1 {[%clk 0:02:23]}  Bf5 {[%clk 0:02:29]} 10. Nc2 {[%clk 0:01:57]}  Bc5 {[%clk 0:02:22]} 11. b4 {[%clk 0:01:53]}  Bb6 {[%clk 0:02:21]} 12. Bb2 {[%clk 0:01:51]}  O-O {[%clk 0:02:15]} 13. Ne3 {[%clk 0:01:49]}  Bg6 {[%clk 0:02:15]} 14. Na4 {[%clk 0:01:43]}  Bd4 {[%clk 0:02:14]} 15. Qc2 {[%clk 0:01:35]}  Re8 {[%clk 0:02:01]} 16. Nc5 {[%clk 0:01:23]}  Bxb2 {[%clk 0:01:56]} 17. Qxb2 {[%clk 0:01:24]}  b6 {[%clk 0:01:53]} 18. Nb3 {[%clk 0:01:22]}  a5 {[%clk 0:01:37]} 19. b5 {[%clk 0:01:19]}  Ne5 {[%clk 0:01:37]} 20. a4 {[%clk 0:01:19]}  h5 {[%clk 0:01:17]} 21. h3 {[%clk 0:01:18]}  Nd5 {[%clk 0:01:03]} 22. Nxd5 {[%clk 0:01:12]}  Qxd5 {[%clk 0:01:04]} 23. Rac1 {[%clk 0:01:12]}  h4 {[%clk 0:00:51]} 24. g4 {[%clk 0:01:10]}  Re7 {[%clk 0:00:51]} 25. d4 {[%clk 0:01:05]}  Nc4 {[%clk 0:00:35]} 26. Qc3 {[%clk 0:01:04]}  Nd6 {[%clk 0:00:33]} 27. Qc6 {[%clk 0:01:03]}  Qxb3 {[%clk 0:00:22]} 28. Qxa8+ {[%clk 0:01:03]}  Kh7 {[%clk 0:00:22]} 29. Qd8 {[%clk 0:00:58]}  Re6 {[%clk 0:00:18]} 30. Rxc7 {[%clk 0:00:54]}  e3 {[%clk 0:00:12]} 31. Qxh4+ {[%clk 0:00:50]}  Kg8 {[%clk 0:00:12]} 32. f4 {[%clk 0:00:50]}  f6 {[%clk 0:00:06]} 33. f5 {[%clk 0:00:50]} 1-0


[Site "https://www.chess.com"]